bitfinex-derivatives/quotes_BTCF0:USTF0_20250121
["timestamp","ask_amount","ask_price","bid_price","bid_amount"]
[1737441898414,0.0966,101520.0,101510.0,0.56670213]
[1737441898619,0.0966,101520.0,101510.0,0.49877431]
[1737441899206,0.0966,101520.0,101510.0,0.56670213]
[1737441900418,0.0966,101520.0,101510.0,0.49877431]
[1737441900806,0.0966,101520.0,101510.0,0.56670213]
[1737441901015,0.09638242,101530.0,101520.0,0.039454]
[1737441901314,0.09638242,101530.0,101520.0,0.10738182]
[1737441901715,0.09638242,101530.0,101520.0,0.20588942]
[1737441901914,0.09638242,101530.0,101520.0,0.1379616]
[1737441902117,0.56456024,101530.0,101500.0,0.3608]
[1737441902317,0.51982782,101520.0,101500.0,0.3608]
[1737441902623,0.51982782,101520.0,101500.0,0.0984979]
[1737441902624,0.131558,101510.0,101500.0,0.0984979]
[1737441903024,0.492358,101510.0,101490.0,0.35567195]
[1737441903216,0.092,101500.0,101490.0,0.78439977]
[1737441903417,0.0921,101510.0,101490.0,0.84344823]
[1737441903616,0.5439,101520.0,101510.0,0.039457]
[1737441903812,0.09548242,101530.0,101520.0,0.039454]
[1737441904018,8.242e-05,101530.0,101520.0,0.10738182]
[1737441904221,8.242e-05,101530.0,101520.0,0.36821724]
[1737441904424,8.242e-05,101530.0,101520.0,0.75688942]
[1737441905819,0.03953242,101530.0,101520.0,0.0985076]
[1737441906024,0.03953242,101530.0,101510.0,0.40034853]
[1737441906025,0.039454,101520.0,101510.0,9.153e-05]
[1737441906222,0.227954,101520.0,101510.0,9.153e-05]
[1737441906420,0.227954,101520.0,101510.0,0.09858943]
[1737441907828,0.1885,101520.0,101510.0,0.09858943]
[1737441908023,0.0938,101520.0,101510.0,0.20597425]
[1737441908222,0.36088242,101530.0,101520.0,0.039454]
[1737441908522,0.49413242,101530.0,101510.0,0.34174664]
[1737441908827,0.49413242,101530.0,101510.0,0.44025424]
[1737441911331,0.039454,101520.0,101510.0,0.33287042]
[1737441911717,0.400254,101520.0,101510.0,0.09859913]
[1737441912030,0.46818182,101520.0,101510.0,9.153e-05]
[1737441912320,0.400254,101520.0,101510.0,9.153e-05]
[1737441913116,0.3608,101520.0,101510.0,0.20598395]
[1737441913430,0.400254,101520.0,101510.0,0.09859913]
[1737441913819,0.400254,101520.0,101510.0,0.02959912]
[1737441914333,0.46818182,101520.0,101500.0,0.23427129]
[1737441914522,0.587457,101510.0,101500.0,0.23427129]
[1737441914725,0.587457,101510.0,101500.0,0.33277889]
[1737441914924,0.587457,101510.0,101500.0,0.23427129]
[1737441915121,0.226657,101510.0,101500.0,0.23427129]
[1737441915834,0.587457,101510.0,101500.0,0.23427129]
[1737441917824,0.226657,101510.0,101500.0,0.23427129]
[1737441918028,0.587457,101510.0,101500.0,0.23427129]
[1737441918233,0.65538482,101510.0,101500.0,0.23427129]
[1737441918822,0.65538482,101510.0,101500.0,0.1766497]
[1737441919136,0.587457,101510.0,101500.0,0.1766497]
[1737441919527,0.226657,101510.0,101500.0,0.27516701]
[1737441920428,0.226657,101510.0,101500.0,0.31462801]
[1737441921332,0.1872,101510.0,101500.0,0.38255583]
[1737441921536,0.1872,101510.0,101500.0,0.41708855]
[1737441921830,0.14756968,101520.0,101510.0,0.039457]
[1737441922032,0.176172,101530.0,101520.0,0.039454]
[1737441922232,0.176172,101530.0,101520.0,0.66293421]
[1737441922435,0.0982,101550.0,101520.0,0.76145152]
[1737441922633,0.10047782,101560.0,101540.0,0.42872782]
[1737441922933,0.46127782,101560.0,101550.0,0.039442]
[1737441923330,0.46127782,101560.0,101540.0,0.09847365]
[1737441923530,0.46826135,101550.0,101530.0,0.039449]
[1737441923836,0.400246,101540.0,101530.0,0.09847365]
[1737441924150,0.591546,101540.0,101520.0,0.53012]
[1737441924331,0.40025,101530.0,101520.0,0.53012]
[1737441924531,0.0922,101530.0,101520.0,0.62860335]
[1737441924733,0.0922,101530.0,101520.0,0.66805735]
[1737441925136,0.0922,101530.0,101520.0,0.96196499]
[1737441926430,0.591548,101540.0,101520.0,1.06372365]
[1737441926641,0.49253453,101550.0,101530.0,0.14120866]
[1737441926829,0.45309153,101550.0,101540.0,0.14120466]
[1737441927129,9.153e-05,101550.0,101540.0,0.14120466]
[1737441927329,9.153e-05,101550.0,101540.0,0.33138801]
[1737441927636,9.153e-05,101550.0,101540.0,0.72670237]
[1737441929030,9.153e-05,101550.0,101540.0,0.69218801]
[1737441929335,0.00147782,101560.0,101550.0,0.039442]
[1737441929534,0.492435,101570.0,101550.0,0.50200066]
[1737441929736,0.492435,101570.0,101550.0,0.46255866]
[1737441929937,0.79621362,101580.0,101560.0,0.50199666]
[1737441929938,0.47484462,101580.0,101560.0,0.50199666]
[1737441930139,0.47484462,101580.0,101570.0,0.10175866]
[1737441930339,0.43541362,101580.0,101570.0,0.14119266]
[1737441930533,0.43541362,101580.0,101570.0,0.23965662]
[1737441930837,0.47484362,101580.0,101570.0,0.09846396]
[1737441931736,0.79621362,101580.0,101550.0,0.48953468]
[1737441931930,0.400235,101570.0,101560.0,0.17577594]
[1737441932132,0.400235,101570.0,101560.0,0.27422536]
[1737441932434,0.50199366,101570.0,101560.0,0.17577594]
[1737441933138,0.400235,101570.0,101560.0,0.17577594]
[1737441933833,0.400235,101570.0,101560.0,0.20623504]
[1737441934236,0.400235,101570.0,101560.0,0.09845911]
[1737441934735,0.400235,101570.0,101550.0,0.40033568]
[1737441934941,0.0977,101560.0,101550.0,0.40033568]
[1737441935241,0.0977,101560.0,101550.0,0.49879479]
[1737441936029,0.3608,101570.0,101550.0,0.56111145]
[1737441936227,0.3608,101570.0,101560.0,0.14119666]
[1737441936440,0.3608,101570.0,101560.0,0.039438]
[1737441936626,0.400235,101570.0,101550.0,0.59759334]
[1737441936941,0.400235,101570.0,101560.0,0.09846881]
[1737441937139,0.039435,101570.0,101560.0,0.039438]
[1737441937340,0.400235,101570.0,101560.0,0.039438]
[1737441937532,0.400235,101570.0,101560.0,0.09846396]
[1737441937732,0.039435,101570.0,101560.0,0.09846396]
[1737441938739,0.039435,101570.0,101560.0,0.03046395]
[1737441938944,0.728231,101580.0,101560.0,0.49302261]
[1737441939241,0.328,101580.0,101570.0,0.14119266]
[1737441939443,0.328,101580.0,101570.0,0.039434]
[1737441939837,0.328,101580.0,101570.0,0.13789311]
[1737441940142,0.2303,101580.0,101570.0,0.60045177]
[1737441940348,0.236123,101600.0,101570.0,0.60045177]
[1737441940540,0.236123,101600.0,101590.0,0.54198466]
[1737441940541,0.1,101600.0,101590.0,0.54198466]
[1737441941148,0.05,101600.0,101590.0,0.8263147]
[1737441941443,0.19607723,101610.0,101590.0,0.8263147]
[1737441941647,0.19607723,101610.0,101600.0,0.18118166]
[1737441942346,0.83974119,101630.0,101610.0,0.039418]
[1737441942645,1.02964119,101630.0,101610.0,0.14117666]
[1737441942940,0.039416,101620.0,101610.0,0.09842035]
[1737441943747,0.400216,101620.0,101610.0,0.03042034]
[1737441944347,0.039416,101620.0,101610.0,0.03042034]
[1737441944549,0.039416,101620.0,101610.0,0.132179]
[1737441944933,0.039416,101620.0,101610.0,0.03042034]
[1737441945138,0.400216,101620.0,101610.0,0.03042034]
[1737441945345,0.039416,101620.0,101610.0,0.03042034]
[1737441946739,0.039416,101620.0,101600.0,0.55989851]
[1737441946740,0.039416,101620.0,101600.0,0.09733985]
[1737441946939,0.039419,101610.0,101600.0,0.05791785]
[1737441947245,0.400219,101610.0,101600.0,0.05791785]
[1737441947442,0.488819,101610.0,101600.0,0.04]
[1737441948133,0.4891122,101610.0,101600.0,0.04]
[1737441948742,0.4891122,101610.0,101600.0,0.13842035]
[1737441949348,0.3610932,101610.0,101600.0,0.27960201]
[1737441949651,0.437223,101600.0,101560.0,0.29390764]
[1737441949845,0.039446,101540.0,101530.0,0.39886481]
[1737441950038,0.50200466,101540.0,101530.0,0.39886481]
[1737441950236,0.400246,101540.0,101530.0,0.39886481]
[1737441950846,0.4003424,101540.0,101530.0,0.39886481]
[1737441952149,0.4003424,101540.0,101510.0,0.400256]
[1737441952349,0.3608,101530.0,101510.0,0.400256]
[1737441952541,0.3608,101530.0,101510.0,0.4987442]
[1737441952740,0.40025,101530.0,101510.0,0.4987442]
[1737441954045,0.3608964,101540.0,101520.0,0.3608]
[1737441954349,0.3608,101550.0,101540.0,0.039446]
[1737441954545,0.11700711,101570.0,101540.0,0.400246]
[1737441954546,0.57956577,101570.0,101540.0,0.400246]
[1737441954752,0.03944,101560.0,101540.0,0.039446]
[1737441955338,0.03944,101560.0,101540.0,0.49871965]
[1737441955739,0.14120066,101550.0,101540.0,0.45927365]
[1737441956049,0.039442,101550.0,101540.0,0.45927365]
[1737441956652,0.15644911,101550.0,101540.0,0.45927365]
[1737441958250,0.15644911,101550.0,101540.0,0.49871965]
[1737441958251,0.11700711,101550.0,101540.0,0.49871965]
[1737441958443,0.11700711,101550.0,101540.0,0.68897831]
[1737441958952,0.06700711,101550.0,101540.0,0.68897831]
[1737441959152,0.01700711,101550.0,101540.0,0.68897831]
[1737441959751,0.3223545,101560.0,101550.0,0.039442]
[1737441959951,0.3223545,101560.0,101550.0,0.400242]
[1737441960343,0.14663574,101570.0,101560.0,0.039438]
[1737441960548,0.14663574,101570.0,101560.0,0.400238]
[1737441961151,0.14663574,101570.0,101560.0,0.49870681]
[1737441961943,0.14663574,101570.0,101560.0,0.79016547]
[1737441962248,0.14663574,101570.0,101560.0,0.68840681]
[1737441962752,0.14663574,101570.0,101560.0,0.79016547]
[1737441962953,0.17571876,101580.0,101560.0,0.79016547]
[1737441963246,0.18750903,101600.0,101570.0,0.59979266]
[1737441963455,0.18750903,101600.0,101590.0,0.3608]
[1737441963755,0.14808603,101600.0,101590.0,0.6736]
[1737441963945,0.14808603,101600.0,101590.0,0.77205911]
[1737441964252,0.14660743,101600.0,101590.0,0.87381777]
[1737441964548,0.14660743,101600.0,101590.0,0.91324377]
[1737441966548,0.17601196,101610.0,101590.0,1.21324377]
[1737441966741,0.20511362,101620.0,101610.0,0.039419]
[1737441966942,0.17728763,101640.0,101610.0,0.46255866]
[1737441967148,0.17728763,101640.0,101630.0,0.7216]
[1737441967344,0.21669463,101640.0,101620.0,0.3608]
[1737441967753,0.14116966,101630.0,101610.0,0.3608]
[1737441967950,0.224011,101630.0,101620.0,0.09841066]
[1737441968255,0.224011,101630.0,101610.0,0.3608]
[1737441968751,0.224011,101630.0,101620.0,0.09840582]
[1737441969056,0.224011,101630.0,101610.0,0.45920582]
[1737441969256,0.1846,101630.0,101620.0,0.3608]
[1737441969456,0.21669463,101640.0,101620.0,0.400215]
[1737441969656,0.21669463,101640.0,101630.0,0.3608]
[1737441969955,0.17728763,101640.0,101630.0,0.3608]
[1737441970354,0.17728763,101640.0,101630.0,0.4591913]
[1737441970554,0.17728763,101640.0,101630.0,0.4986023]
[1737441971344,0.00147651,101640.0,101630.0,0.4986023]
[1737441972446,0.00147651,101640.0,101630.0,0.60036096]
[1737441972849,0.00147651,101640.0,101630.0,0.69266096]
[1737441973049,0.586598,101670.0,101630.0,0.69266096]
[1737441973353,0.586598,101670.0,101640.0,0.400206]
[1737441973858,0.586598,101670.0,101640.0,0.50196466]
[1737441974053,0.586598,101670.0,101640.0,0.60035596]
[1737441974443,0.586598,101670.0,101650.0,0.3608]
[1737441974648,0.039399,101660.0,101650.0,0.3608]
[1737441975055,0.039399,101660.0,101650.0,0.45917194]
[1737441975355,0.50195766,101660.0,101640.0,0.3608]
[1737441975551,0.039403,101650.0,101640.0,0.3608]
[1737441975755,0.039407,101640.0,101620.0,0.400215]
[1737441976150,0.214507,101640.0,101630.0,0.09837194]
[1737441976350,0.575307,101640.0,101620.0,0.3608]
[1737441976755,0.575307,101640.0,101620.0,0.45919614]
[1737441977256,0.214507,101640.0,101620.0,0.49861114]
[1737441977757,0.575307,101640.0,101620.0,0.49861114]
[1737441977954,0.039411,101630.0,101620.0,0.49861114]
[1737441978351,0.039411,101630.0,101620.0,0.45919614]
[1737441978554,0.43963,101620.0,101580.0,0.2157051]
[1737441978754,0.039438,101560.0,101550.0,0.41097715]
[1737441978955,0.50199666,101560.0,101550.0,0.41097715]
[1737441983554,0.50199666,101560.0,101540.0,0.46979303]
[1737441983555,0.50199666,101560.0,101540.0,0.00010486]
[1737441983861,0.36086994,101550.0,101540.0,0.09846881]
[1737441984054,0.40031194,101550.0,101540.0,0.09846881]
[1737441984255,6.994e-05,101550.0,101540.0,0.13791481]
[1737441984458,6.994e-05,101550.0,101540.0,0.60047347]
[1737441984758,0.3608,101570.0,101560.0,0.039438]
[1737441985456,0.3608,101570.0,101560.0,0.13789711]
[1737441986456,0.400231,101580.0,101560.0,0.09845911]
[1737441986761,0.3608,101580.0,101570.0,0.039434]
[1737441987464,0.400223,101600.0,101580.0,0.039428]
[1737441987759,0.1754255,101590.0,101580.0,0.03943]
[1737441988152,0.1754255,101590.0,101580.0,0.13787942]
[1737441988959,0.1754255,101590.0,101570.0,0.53506406]
[1737441989162,0.1754255,101590.0,101580.0,0.09843973]
[1737441989557,0.1754255,101590.0,101570.0,0.55101369]
[1737441989770,0.1754255,101590.0,101580.0,0.13786773]
[1737441990062,0.1754255,101590.0,101580.0,0.400228]
[1737441990562,0.1754255,101590.0,101580.0,0.13786773]
[1737441990858,0.400223,101600.0,101580.0,0.13786773]
[1737441991552,0.50198466,101590.0,101580.0,0.09843973]
[1737441991752,0.039426,101590.0,101580.0,0.09843973]
[1737441991959,0.400226,101590.0,101580.0,0.09843973]
[1737441994468,0.3608,101590.0,101580.0,0.13786973]
[1737441994652,0.400224,101600.0,101580.0,0.09843973]
[1737441994857,0.400219,101610.0,101590.0,0.039425]
[1737441995058,0.3608,101600.0,101590.0,0.039425]
[1737441995359,0.400219,101610.0,101590.0,0.039425]
[1737441995663,0.3608,101600.0,101590.0,0.13785019]
[1737441995863,0.400223,101600.0,101590.0,0.13785019]
[1737441996658,0.3608,101600.0,101590.0,0.13785019]
[1737441997762,0.400223,101600.0,101590.0,0.13785019]
[1737441998465,0.50198166,101600.0,101590.0,0.09842519]
[1737441998655,0.400223,101600.0,101590.0,0.09842519]
[1737441998856,0.400223,101600.0,101590.0,0.03042518]
[1737441999173,0.40022,101610.0,101590.0,0.06985118]
[1737441999754,0.3608,101600.0,101590.0,0.06985118]
[1737442003857,0.3608,101600.0,101580.0,0.4555]
[1737442004055,0.3608,101600.0,101590.0,0.13785604]
[1737442004258,0.3608,101600.0,101590.0,0.039426]
[1737442004558,0.400223,101600.0,101590.0,0.13786088]
[1737442005456,0.400223,101600.0,101590.0,0.09843488]
[1737442006961,0.400223,101600.0,101580.0,0.0947]
[1737442007266,0.03943,101580.0,101570.0,0.22964769]
[1737442007459,0.40023,101580.0,101570.0,0.22964769]
[1737442007656,0.40023,101580.0,101570.0,0.09921369]
[1737442007856,0.40023,101580.0,101570.0,0.09843004]
[1737442008262,0.400227,101590.0,101580.0,0.03943]
[1737442008961,0.039427,101590.0,101580.0,0.13787942]
[1737442009967,0.2148525,101590.0,101580.0,0.13787942]
[1737442010357,0.5756525,101590.0,101580.0,0.13787942]
[1737442010754,0.5756525,101590.0,101580.0,0.09844942]
[1737442011564,0.5362255,101590.0,101580.0,0.13787942]
[1737442012358,0.5756515,101590.0,101580.0,0.13787942]
[1737442013057,0.5756515,101590.0,101580.0,0.09844942]
[1737442013261,0.039433,101580.0,101560.0,1.02867702]
[1737442013572,0.039433,101580.0,101560.0,0.61668738]
[1737442013573,0.400234,101570.0,101560.0,0.61668738]
[1737442013869,0.039434,101570.0,101560.0,0.71512711]
[1737442014462,0.400234,101570.0,101560.0,0.71512711]
[1737442014960,0.50199266,101570.0,101560.0,0.09843973]
[1737442015163,0.50199266,101570.0,101540.0,0.73940768]
[1737442015164,0.039442,101550.0,101540.0,0.73940768]
[1737442015362,0.039442,101550.0,101540.0,0.77392268]
[1737442015565,0.039442,101550.0,101540.0,0.87238179]
[1737442016569,0.039442,101550.0,101540.0,0.37863679]
[1737442017168,0.400242,101550.0,101540.0,0.33117106]
[1737442018564,0.7228159,101550.0,101540.0,0.09857152]
[1737442019270,0.3225739,101550.0,101540.0,0.09857152]
[1737442019572,0.3225739,101550.0,101540.0,0.49881752]
[1737442019873,0.7228159,101550.0,101540.0,0.09857152]
[1737442021168,0.6833739,101550.0,101540.0,0.13801752]
[1737442021373,0.3225739,101550.0,101540.0,0.60057618]
[1737442021564,0.1471484,101550.0,101540.0,0.63509211]
[1737442021766,0.0971484,101550.0,101540.0,0.63509211]
[1737442022065,0.0472484,101550.0,101540.0,0.13801752]
[1737442022470,0.0866904,101550.0,101540.0,0.13801752]
[1737442022774,0.0472484,101550.0,101540.0,0.13801752]
[1737442023561,0.0472484,101550.0,101540.0,0.60057618]
[1737442024167,0.0472484,101550.0,101540.0,0.13801752]
[1737442025162,0.5756645,101560.0,101540.0,0.13801752]
[1737442025368,0.11769664,101550.0,101540.0,0.13801752]
[1737442025766,0.15713864,101550.0,101540.0,0.13801752]
[1737442025967,0.51793864,101550.0,101540.0,0.13801752]
[1737442026167,0.15713864,101550.0,101540.0,0.13801752]
[1737442026472,0.51793864,101550.0,101540.0,0.13801752]
[1737442026668,0.3608,101530.0,101500.0,0.4767356]
[1737442026868,0.039461,101500.0,101490.0,0.34824978]
[1737442027063,0.50201966,101500.0,101490.0,0.34824978]
[1737442027271,0.039465,101490.0,101470.0,0.46968817]
[1737442027472,0.86282766,101480.0,101470.0,0.46968817]
[1737442027772,0.86295043,101480.0,101470.0,0.46968817]
[1737442028767,0.86295043,101480.0,101470.0,0.40068816]
[1737442029072,0.039478,101460.0,101440.0,0.129784]
[1737442029268,0.7216,101450.0,101440.0,0.129784]
[1737442029468,0.7216,101450.0,101440.0,0.22833044]
[1737442030577,0.7216,101450.0,101440.0,0.3310891]
[1737442031577,0.7216,101450.0,101440.0,0.22933044]
[1737442032477,0.44850891,101450.0,101440.0,0.18984644]
[1737442032772,0.44850891,101450.0,101440.0,0.22933144]
[1737442033174,0.07036784,101460.0,101450.0,0.039481]
[1737442033370,0.07036784,101460.0,101450.0,0.50203966]
[1737442033571,0.1754255,101470.0,101460.0,0.039477]
[1737442034179,0.1754255,101470.0,101460.0,0.400277]
[1737442034384,0.1754255,101470.0,101460.0,0.49885258]
[1737442034972,0.36092277,101480.0,101470.0,0.039473]
[1737442035476,0.36092277,101480.0,101450.0,0.87534803]
[1737442035678,0.36092277,101480.0,101470.0,0.09854644]
[1737442035879,0.36092277,101480.0,101460.0,0.039476]
[1737442036181,0.3608,101470.0,101460.0,0.039476]
[1737442036382,0.36092277,101480.0,101470.0,0.039473]
[1737442036979,0.36092277,101480.0,101470.0,0.09855129]
[1737442037576,0.50215043,101480.0,101470.0,0.09855129]
[1737442037888,0.039473,101470.0,101450.0,0.58266582]
[1737442038081,0.3608,101460.0,101450.0,0.58266582]
[1737442038280,0.3608,101460.0,101450.0,0.68121226]
[1737442038483,0.3608,101460.0,101450.0,0.66814644]
[1737442038683,0.3608,101460.0,101450.0,0.62866644]
[1737442038983,0.3608,101460.0,101450.0,0.66814744]
[1737442040389,0.3608,101460.0,101450.0,0.52007932]
[1737442041780,0.7216,101460.0,101450.0,0.52007932]
[1737442042183,0.3608,101460.0,101450.0,0.52007932]
[1737442043279,0.3608,101470.0,101460.0,0.039475]
[1737442043977,0.3608,101470.0,101460.0,0.22734086]
[1737442044290,0.17554827,101480.0,101470.0,0.039473]
[1737442044498,0.16361182,101480.0,101470.0,0.221573]
[1737442045080,0.0014787,101490.0,101480.0,0.039469]
[1737442045272,0.6259943,101510.0,101500.0,0.039461]
[1737442045480,0.76721096,101510.0,101490.0,0.039464]
[1737442045679,0.46255866,101500.0,101490.0,0.039464]
[1737442046374,0.50202266,101500.0,101490.0,0.09854644]
[1737442048786,0.3608,101500.0,101490.0,0.06901143]
[1737442049180,0.46255866,101500.0,101490.0,0.06901143]
[1737442049882,0.3608,101500.0,101490.0,0.06901143]
[1737442050386,0.50201966,101500.0,101490.0,0.02954643]
[1737442051777,0.039465,101490.0,101480.0,0.039468]
[1737442051979,0.50202366,101490.0,101480.0,0.039468]
[1737442052185,0.50202366,101490.0,101480.0,0.13799502]
[1737442052492,0.50202366,101490.0,101470.0,0.05010382]
[1737442052678,0.50202966,101480.0,101460.0,0.216377]
[1737442052879,0.3608,101470.0,101460.0,0.216377]
[1737442053182,0.3608,101470.0,101460.0,0.31491372]
[1737442053688,0.3608,101480.0,101470.0,0.039473]
[1737442054288,0.3608,101480.0,101470.0,0.13802915]
[1737442055075,0.50744997,101490.0,101470.0,0.13802915]
[1737442055389,0.50744997,101490.0,101480.0,0.039469]
[1737442055994,0.50744997,101490.0,101480.0,0.13801058]
[1737442056487,0.50744997,101490.0,101480.0,0.23976924]
[1737442056682,0.50744997,101490.0,101480.0,0.27430617]
[1737442056882,0.3608,101490.0,101480.0,0.17254751]
[1737442057291,0.3608,101500.0,101490.0,0.039465]
[1737442057481,0.3608,101520.0,101510.0,0.039458]
[1737442057887,0.3608,101520.0,101510.0,0.13799472]
[1737442058791,0.3608,101520.0,101510.0,0.06899471]
[1737442059089,0.50201266,101520.0,101510.0,0.06899471]
[1737442059288,0.50201266,101520.0,101500.0,0.039461]
[1737442059489,0.50201666,101510.0,101490.0,0.039465]
[1737442059697,0.3608,101500.0,101490.0,0.039465]
[1737442059893,0.3608,101500.0,101490.0,0.17250592]
[1737442060986,0.3608,101510.0,101500.0,0.039461]
[1737442061586,0.3608,101510.0,101500.0,0.13797831]
[1737442063495,0.5669418,101530.0,101510.0,0.039454]
[1737442063886,0.5669418,101530.0,101520.0,0.039454]
[1737442064194,0.5669418,101530.0,101520.0,0.07397863]
[1737442064390,0.5669418,101530.0,101520.0,0.039454]
[1737442064786,0.36227872,101530.0,101500.0,1.26756039]
[1737442065091,0.36227872,101530.0,101520.0,0.1379519]
[1737442065396,0.36227872,101530.0,101520.0,0.039454]
[1737442065694,0.36227872,101530.0,101520.0,0.1379519]
[1737442066924,0.32515421,101530.0,101520.0,0.1379519]
[1737442067609,0.32367549,101530.0,101520.0,0.60051056]
[1737442067910,0.56677532,101550.0,101540.0,0.039446]
[1737442068111,0.20597532,101550.0,101540.0,0.50200466]
[1737442068300,0.23441557,101560.0,101540.0,0.50200466]
[1737442068501,0.48599089,101570.0,101560.0,0.039438]
[1737442068700,0.31901068,101580.0,101570.0,0.039434]
[1737442068914,0.30901068,101580.0,101570.0,0.50199266]
[1737442069105,0.30901068,101580.0,101570.0,0.60047116]
[1737442069307,0.30901068,101580.0,101570.0,0.60059396]
[1737442069509,0.00147723,101590.0,101570.0,0.60059396]
[1737442069715,0.00147723,101590.0,101580.0,0.50198866]
[1737442070422,0.4608,101600.0,101580.0,0.56100808]
[1737442070604,0.1,101600.0,101590.0,0.039426]
[1737442070802,0.4608,101600.0,101590.0,0.039426]
[1737442071316,0.4608,101600.0,101590.0,0.13786573]
[1737442071616,0.1,101600.0,101590.0,0.13786573]
[1737442072816,0.4608,101600.0,101590.0,0.09843973]
[1737442073003,0.500223,101600.0,101590.0,0.09843973]
[1737442073712,0.500223,101600.0,101590.0,0.03043972]
[1737442074302,0.1,101600.0,101590.0,0.53242438]
[1737442074502,0.03248023,101600.0,101590.0,0.53242438]
[1737442074707,0.36227687,101630.0,101610.0,0.039415]
[1737442074913,0.00147687,101630.0,101620.0,0.14117366]
[1737442075222,0.00147687,101630.0,101620.0,0.039415]
[1737442075514,0.00147687,101630.0,101620.0,0.13784504]
[1737442075717,0.36227687,101630.0,101620.0,0.13784504]
[1737442076417,0.36227687,101630.0,101620.0,0.09843004]
[1737442077013,0.40168787,101630.0,101620.0,0.09843004]
[1737442077216,0.039415,101620.0,101600.0,0.569302]
[1737442077412,0.3608,101610.0,101590.0,0.04782286]
[1737442077717,0.3608,101610.0,101600.0,0.09840098]
[1737442077917,0.8148,101610.0,101590.0,0.04782286]
[1737442078113,0.3608,101600.0,101590.0,0.04782286]
[1737442078417,0.3608,101600.0,101590.0,0.14622384]
[1737442078608,0.585521,101610.0,101590.0,0.14622384]
[1737442078803,0.3608,101600.0,101590.0,0.14622384]
[1737442079011,0.585521,101610.0,101590.0,0.14622384]
[1737442079215,0.3608,101600.0,101590.0,0.14622384]
[1737442079614,0.585521,101610.0,101590.0,0.14622384]
[1737442079818,0.585521,101610.0,101590.0,0.13782698]
[1737442080015,0.675321,101610.0,101590.0,0.31413123]
[1737442080210,0.400223,101600.0,101590.0,0.27470523]
[1737442080406,0.400223,101600.0,101590.0,0.17630425]
[1737442082220,0.50198166,101600.0,101590.0,0.17630425]
[1737442082812,0.400223,101600.0,101590.0,0.17630425]
[1737442083723,0.400223,101600.0,101590.0,0.10830424]
[1737442083923,0.400223,101600.0,101580.0,0.569189]
[1737442084225,0.3608,101590.0,101580.0,0.569189]
[1737442085216,0.3608,101590.0,101580.0,0.76938254]
[1737442085406,0.3608,101600.0,101580.0,0.76938254]
[1737442085614,0.3608,101590.0,101580.0,0.66762388]
[1737442086421,0.3608,101600.0,101590.0,0.039426]
[1737442087010,0.3608,101600.0,101590.0,0.13786573]
[1737442087215,0.6359,101610.0,101600.0,0.039423]
[1737442087418,0.6359,101610.0,101600.0,0.14118166]
[1737442087721,0.6359,101610.0,101600.0,0.039423]
[1737442087919,0.6359,101610.0,101600.0,0.13785304]
[1737442088714,0.2751,101610.0,101600.0,0.06985303]
[1737442088920,0.0932,101610.0,101600.0,0.21103469]
[1737442089118,0.3608,101620.0,101610.0,0.039419]
[1737442089318,0.3608,101620.0,101610.0,0.14117766]
[1737442089821,0.36227687,101630.0,101620.0,0.039415]
[1737442090014,0.36227687,101630.0,101620.0,0.14117366]
[1737442090216,0.00147687,101630.0,101620.0,0.14117366]
[1737442090526,0.00147687,101630.0,101620.0,0.23958432]
[1737442090822,0.00147687,101630.0,101620.0,0.60038432]
[1737442091816,0.3608,101650.0,101640.0,0.039407]
[1737442092014,0.3608,101650.0,101640.0,0.14116566]
[1737442092417,0.3608,101650.0,101640.0,0.13780798]
[1737442093718,0.3608,101650.0,101640.0,0.06980797]
[1737442094020,0.3608,101650.0,101640.0,0.21097363]
[1737442094821,0.3608,101650.0,101620.0,0.30679478]
[1737442095130,0.3608,101610.0,101540.0,0.25438724]
[1737442095318,0.86278866,101580.0,101570.0,0.25451004]
[1737442095626,0.86278866,101580.0,101570.0,1.09451004]
[1737442097727,0.94023317,101580.0,101570.0,1.09451004]
[1737442098818,0.94023317,101580.0,101570.0,1.02651003]
[1737442099833,0.94034611,101580.0,101570.0,1.02651003]
[1737442100131,0.94034611,101580.0,101570.0,0.879434]
[1737442100334,0.90091611,101580.0,101570.0,0.97788342]
[1737442100524,0.72171294,101580.0,101570.0,0.13788342]
[1737442102421,0.72171294,101580.0,101570.0,0.97788342]
[1737442102831,0.72171294,101580.0,101570.0,1.07428342]
[1737442103036,0.72171294,101580.0,101570.0,1.08272208]
[1737442103629,0.72171294,101580.0,101570.0,0.93844942]
[1737442103935,0.94034611,101580.0,101570.0,0.84]
[1737442108127,0.039439,101560.0,101540.0,0.13592012]
[1737442108329,0.7216,101550.0,101540.0,0.14250254]
[1737442108742,0.7216,101550.0,101540.0,0.24097619]
[1737442109429,0.6716,101550.0,101540.0,0.24097619]
[1737442109839,0.622,101550.0,101540.0,0.24097619]
[1737442110727,0.039435,101570.0,101540.0,0.24097619]
[1737442111039,0.3608,101550.0,101540.0,0.24097619]
[1737442116336,0.3108,101550.0,101540.0,0.24097619]
[1737442117234,0.27746338,101550.0,101540.0,0.24097619]
[1737442117435,0.3608,101570.0,101540.0,0.60177619]
[1737442117634,0.3608,101570.0,101560.0,0.039438]
[1737442118534,0.3608,101570.0,101560.0,0.1379165]
[1737442118944,0.36091294,101580.0,101570.0,0.039434]
[1737442119647,0.36091294,101580.0,101570.0,0.13789311]
[1737442120134,0.46257504,101580.0,101570.0,0.13789311]
[1737442120543,0.36091294,101580.0,101570.0,0.13789311]
[1737442121138,0.36091294,101580.0,101570.0,0.1445349]
[1737442121338,0.00011294,101580.0,101570.0,0.1445349]
[1737442121535,0.00011294,101580.0,101570.0,0.2320349]
[1737442121728,0.00011294,101580.0,101570.0,0.7617949]
[1737442122342,0.36091294,101580.0,101570.0,0.7617949]
[1737442122542,0.00011294,101580.0,101570.0,0.7617949]
[1737442122743,0.36091294,101580.0,101570.0,0.7617949]
[1737442123432,0.00011294,101580.0,101570.0,0.7617949]
[1737442123639,0.3608,101590.0,101570.0,1.224257]
[1737442123944,0.3608,101600.0,101580.0,0.22293]
[1737442124140,0.3608,101600.0,101590.0,0.039423]
[1737442124535,0.77011846,101610.0,101600.0,0.039423]
[1737442124536,0.67451846,101610.0,101600.0,0.039423]
[1737442124935,0.57285636,101610.0,101600.0,0.039423]
[1737442125135,0.57285636,101610.0,101600.0,0.13785304]
[1737442127450,0.57285636,101610.0,101600.0,0.14442551]
[1737442128754,0.57285636,101610.0,101600.0,0.0764255]
[1737442129145,0.57285636,101610.0,101600.0,0.1158485]
[1737442129351,0.47787898,101610.0,101600.0,0.2175106]
[1737442129744,0.47787898,101610.0,101600.0,0.1158485]